fUST/lending_fUST_20250227
["ID","MTS","AMOUNT","RATE_DAILY","PERIOD"]
[354650334,1740603054924,-470.0,0.00328381,120]
[354650336,1740603054933,-470.0,0.00328381,120]
[354650338,1740603054942,-470.0,0.00328381,120]
[354650340,1740603054952,-470.0,0.00328381,120]
[354650342,1740603054961,-470.0,0.00328381,120]
[354650344,1740603054972,-470.0,0.00328381,120]
[354650346,1740603054981,-470.0,0.00328381,120]
[354650348,1740603054991,-470.0,0.00328381,120]
[354650350,1740603055000,-470.0,0.00328381,120]
[354650352,1740603055010,-470.0,0.00328381,120]
[354650355,1740603055020,-547.0,0.00328866,120]
[354650356,1740603055029,-547.0,0.00328866,120]
[354650358,1740603055038,-547.0,0.00328866,120]
[354650360,1740603055048,-547.0,0.00328866,120]
[354650362,1740603055057,-547.0,0.00328866,120]
[354650365,1740603055066,-547.0,0.00328866,120]
[354650367,1740603055079,-547.0,0.00328866,120]
[354650369,1740603055088,-547.0,0.00328866,120]
[354650371,1740603055098,-547.0,0.00328866,120]
[354650373,1740603055112,-547.0,0.00328866,120]
[354650375,1740603055121,-547.0,0.00328866,120]
[354650377,1740603055131,-547.0,0.00328866,120]
[354650379,1740603055139,-547.0,0.00328866,120]
[354650381,1740603055149,-547.0,0.00328866,120]
[354650382,1740603055158,-547.0,0.00328866,120]
[354650384,1740603055167,-547.0,0.00328866,120]
[354650386,1740603055177,-547.0,0.00328866,120]
[354650388,1740603055185,-547.0,0.00328866,120]
[354650390,1740603055195,-547.0,0.00328866,120]
[354650392,1740603055204,-547.0,0.00328866,120]
[354650394,1740603055213,-547.0,0.00328866,120]
[354650396,1740603055222,-547.0,0.00328866,120]
[354650398,1740603055231,-547.0,0.00328866,120]
[354650400,1740603055240,-547.0,0.00328866,120]
[354650402,1740603055250,-5000.0,0.0033,120]
[354650405,1740603055260,-200.0,0.0033016,120]
[354650407,1740603055269,-179.40795375,0.00343343,60]
[354650409,1740603055278,-3000.0,0.00345188,14]
[354650411,1740603055287,-200.0,0.0035043,120]
[354650413,1740603055296,-247.55486082,0.0035611,120]
[354650415,1740603055306,-247.55486082,0.00357808,120]
[354650417,1740603055315,-247.55486082,0.00359534,120]
[354650419,1740603055325,-5000.0,0.0036,120]
[354650421,1740603055334,-153.55779158,0.0036,120]
[354650423,1740603055344,-247.55486082,0.0036126,120]
[354650425,1740603055354,-247.55486082,0.00362986,120]
[354650427,1740603055367,-3500.0,0.00364457,14]
[354650429,1740603055378,-247.55486082,0.00364712,120]
[354650431,1740603055388,-247.55486082,0.00366438,120]
[354650433,1740603055398,-247.55486082,0.00368164,120]
[354650435,1740603055407,-247.55486082,0.00369863,120]
[354650437,1740603055421,-200.0,0.003707,120]
[354650439,1740603055431,-247.55486082,0.00371589,120]
[354650441,1740603055441,-247.55486082,0.00373315,120]
[354650443,1740603055451,-160.0,0.00373966,120]
[354650445,1740603055463,-247.55486082,0.00375041,120]
[354650447,1740603055472,-4000.0,0.00385406,14]
[354650449,1740603055482,-160.538884,0.00387257,2]
[354650451,1740603055491,-10000.0,0.0039,120]
[354650453,1740603055500,-200.0,0.0039098,120]
[354650455,1740603055512,-153.55,0.004,120]
[354650457,1740603055521,-160.0,0.00407167,120]
[354650459,1740603055531,-4500.0,0.00407911,14]
[354650461,1740603055541,-215.85,0.00408,60]
[354650463,1740603055551,-200.0,0.0041125,120]
[354650465,1740603055560,-281.0,0.0043152,120]
[354650467,1740603055570,-5000.0,0.00431871,14]
[354650469,1740603055581,-5000.0,0.0044,120]
[354650471,1740603055591,-5000.0,0.0045,120]
[354650473,1740603055600,-5500.0,0.00457201,14]
[354650475,1740603055614,-160.0,0.00467539,120]
[354650477,1740603055624,-1000.0,0.00479667,120]
[354650479,1740603055634,-6235.74840486,0.0048,120]
[354650481,1740603055644,-574.14980492,0.00480215,120]
[354650483,1740603055653,-6000.0,0.00483832,14]
[354650485,1740603055663,-3000.0,0.004889,120]
[354650487,1740603055672,-151.29,0.00489,120]
[354650489,1740603055682,-5000.0,0.004969,120]
[354650491,1740603055691,-503.4417108,0.005,120]
[354650493,1740603055701,-15000.0,0.005,120]
[354650495,1740603055711,-20000.0,0.005,120]
[354650497,1740603055721,-160.538884,0.005,2]
[354650499,1740603055731,-166.79843,0.005,2]
[354650501,1740603055741,-268.83,0.005076,87]
[354650503,1740603055751,-268.83,0.005076,87]
[354650505,1740603055761,-268.83,0.005076,87]
[354650507,1740603055771,-268.83,0.005076,87]
[354650509,1740603055781,-268.83,0.005076,87]
[354650511,1740603055791,-268.83,0.005076,87]
[354650513,1740603055800,-268.83,0.005076,87]
[354650515,1740603055809,-268.83,0.005076,87]
[354650517,1740603055819,-268.83,0.005076,87]
[354650520,1740603055828,-268.83,0.005076,87]
[354650522,1740603055837,-268.83,0.005076,87]
[354650524,1740603055846,-268.83,0.005076,87]
[354650526,1740603055857,-235.9,0.0051,120]
[354650527,1740603055868,-6500.0,0.00511702,14]
[354650529,1740603055877,-179.40795375,0.00515014,60]
[354650532,1740603055887,-5000.0,0.0052,120]
[354650534,1740603055897,-470.0,0.00522179,120]
[354650536,1740603055907,-470.0,0.00522179,120]
[354650537,1740603055916,-470.0,0.00522179,120]
[354650539,1740603055924,-470.0,0.00522179,120]
[354650541,1740603055934,-470.0,0.00522179,120]
[354650543,1740603055943,-470.0,0.00522179,120]
[354650546,1740603055952,-470.0,0.00522179,120]
[354650548,1740603055962,-470.0,0.00522179,120]
[354650550,1740603055971,-470.0,0.00522179,120]
[354650552,1740603055980,-470.0,0.00522179,120]
[354650554,1740603055990,-470.0,0.00522179,120]
[354650556,1740603055999,-470.0,0.00522179,120]
[354650558,1740603056008,-470.0,0.00522179,120]
[354650560,1740603056018,-470.0,0.00522179,120]
[354650562,1740603056027,-547.0,0.00522288,120]
[354650564,1740603056036,-547.0,0.00522288,120]
[354650566,1740603056045,-547.0,0.00522288,120]
[354650568,1740603056054,-547.0,0.00522288,120]
[354650570,1740603056064,-547.0,0.00522288,120]
[354650580,1740603056157,-547.0,0.00522288,120]
[354650582,1740603056167,-547.0,0.00522288,120]
[354650584,1740603056176,-547.0,0.00522288,120]
[354650586,1740603056186,-547.0,0.00522288,120]
[354650588,1740603056196,-547.0,0.00522288,120]
[354650590,1740603056207,-547.0,0.00522288,120]
[354650592,1740603056216,-547.0,0.00522288,120]
[354650594,1740603056226,-547.0,0.00522288,120]
[354650596,1740603056236,-547.0,0.00522288,120]
[354650598,1740603056245,-470.0,0.00522696,120]
[354650600,1740603056255,-470.0,0.00522696,120]
[354650602,1740603056264,-470.0,0.00522696,120]
[354650604,1740603056274,-470.0,0.00522696,120]
[354650606,1740603056283,-470.0,0.00522696,120]
[354650608,1740603056293,-470.0,0.00522696,120]
[354650610,1740603056302,-470.0,0.00522696,120]
[354650612,1740603056312,-470.0,0.00522696,120]
[354650614,1740603056321,-470.0,0.00522696,120]
[354650617,1740603056331,-470.0,0.00522696,120]
[354650619,1740603056341,-470.0,0.00522696,120]
[354650621,1740603056351,-470.0,0.00522696,120]
[354650623,1740603056363,-470.0,0.00522696,120]
[354650625,1740603056372,-470.0,0.00522696,120]
[354650627,1740603056382,-547.0,0.00522784,120]
[354650629,1740603056391,-547.0,0.00522784,120]
[354650631,1740603056400,-547.0,0.00522784,120]
[354650633,1740603056409,-547.0,0.00522784,120]
[354650635,1740603056422,-547.0,0.00522784,120]
[354650637,1740603056434,-547.0,0.00522784,120]
[354650639,1740603056443,-547.0,0.00522784,120]
[354650641,1740603056453,-547.0,0.00522784,120]
[354650643,1740603056462,-547.0,0.00522784,120]
[354650645,1740603056472,-547.0,0.00522784,120]
[354650647,1740603056482,-547.0,0.00522784,120]
[354650649,1740603056491,-547.0,0.00522784,120]
[354650651,1740603056501,-547.0,0.00522784,120]
[354650653,1740603056513,-547.0,0.00522784,120]
[354650655,1740603056523,-470.0,0.00523171,120]
[354650657,1740603056533,-470.0,0.00523171,120]
[354650659,1740603056542,-470.0,0.00523171,120]
[354650661,1740603056551,-470.0,0.00523171,120]
[354650663,1740603056560,-470.0,0.00523171,120]
[354650665,1740603056570,-470.0,0.00523171,120]
[354650667,1740603056579,-470.0,0.00523171,120]
[354650669,1740603056588,-470.0,0.00523171,120]
[354650671,1740603056598,-470.0,0.00523171,120]
[354650673,1740603056610,-470.0,0.00523171,120]
[354650675,1740603056619,-470.0,0.00523171,120]
[354650677,1740603056628,-470.0,0.00523171,120]
[354650679,1740603056638,-470.0,0.00523171,120]
[354650681,1740603056647,-470.0,0.00523171,120]
[354650683,1740603056656,-547.0,0.00523268,120]
[354650686,1740603056666,-547.0,0.00523268,120]
[354650688,1740603056675,-547.0,0.00523268,120]
[354650690,1740603056684,-547.0,0.00523268,120]
[354650692,1740603056693,-547.0,0.00523268,120]
[354650694,1740603056703,-547.0,0.00523268,120]
[354650696,1740603056712,-547.0,0.00523268,120]
[354650698,1740603056722,-547.0,0.00523268,120]
[354650700,1740603056731,-547.0,0.00523268,120]
[354650701,1740603056740,-547.0,0.00523268,120]
[354650702,1740603056749,-547.0,0.00523268,120]
[354650704,1740603056759,-547.0,0.00523268,120]
[354650706,1740603056768,-547.0,0.00523268,120]
[354650708,1740603056777,-547.0,0.00523268,120]
[354650710,1740603056787,-735.166499,0.00539452,120]
[354650712,1740603056796,-5000.0,0.0054,120]
[354650714,1740603056806,-7000.0,0.00540759,14]
[354650717,1740603056816,-5000.0,0.0056,120]
[354650719,1740603056825,-7500.0,0.00570957,14]
[354650721,1740603056836,-160.0,0.00578128,120]
[354650723,1740603056845,-150.0,0.0059275,120]
[354650725,1740603056855,-304.16537073,0.00593298,120]
[354650727,1740603056867,-20000.0,0.006,120]
[354650729,1740603056876,-5104.08821971,0.00602253,14]
[354650731,1740603056886,-500.0,0.00621696,120]
[354650733,1740603056895,-9009.35230581,0.0063564,120]
[354650735,1740603056905,-480.0,0.00649093,120]
[354650737,1740603056915,-872.0,0.0065,120]
[354650739,1740603056924,-91322.33434838,0.006788,120]
[354650741,1740603056940,-6014.66351264,0.006788,120]
[354650747,1740603056985,500.0,0.00060141,120]
[354650750,1740603056998,-203782.80077189,0.006788,120]
[354650752,1740603057008,-2051.877826,0.0068,120]
[354650754,1740603057017,-1000.0,0.0068,120]
[354650755,1740603057026,-27365.66443446,0.0068,120]
[354650758,1740603057035,-151.29,0.0068,120]
[354650760,1740603057045,-440.0,0.00680423,120]
[354650762,1740603057055,-160.0,0.00684873,120]
[354650764,1740603057064,-500.0,0.00684904,120]
[354650766,1740603057073,-500.0,0.00684904,120]
[354650768,1740603057082,-500.0,0.00684904,120]
[354650770,1740603057092,-500.0,0.00684904,120]
[354650772,1740603057101,-500.0,0.00684904,120]
[354650774,1740603057113,-500.0,0.00684904,120]
[354650776,1740603057122,-500.0,0.00684904,120]
[354650778,1740603057131,-500.0,0.00684904,120]
[354650780,1740603057141,-500.0,0.00684904,120]
[354650782,1740603057150,-500.0,0.00684904,120]
[354650784,1740603057159,-500.0,0.00684904,120]
[354650786,1740603057169,-500.0,0.00684904,120]
[354650788,1740603057178,-500.0,0.00684904,120]
[354650790,1740603057187,-500.0,0.00684904,120]
[354650792,1740603057197,-500.0,0.00684904,120]
[354650794,1740603057207,-500.0,0.00684904,120]
[354650796,1740603057216,-500.0,0.00684904,120]
[354650798,1740603057225,-500.0,0.00684904,120]
[354650800,1740603057235,-500.0,0.00684904,120]
[354650802,1740603057244,-500.0,0.00684904,120]
[354650804,1740603057253,-152.40590414,0.00684904,120]
[354650806,1740603057263,-1719.33,0.00684931,120]
[354650808,1740603057272,-1719.33,0.00684931,120]
[354650810,1740603057282,-1719.33,0.00684931,120]
[354650812,1740603057291,-1719.33,0.00684931,120]
[354650814,1740603057300,-1719.33,0.00684931,120]
[354650816,1740603057309,-1719.33,0.00684931,120]
[354650818,1740603057323,-1719.33,0.00684931,120]
[354650821,1740603057337,-1719.33,0.00684931,120]
[354650823,1740603057350,-1719.33,0.00684931,120]
[354650826,1740603057366,-1719.33,0.00684931,120]
[354650828,1740603057378,-1719.33,0.00684931,120]
[354650830,1740603057389,-1719.33,0.00684931,120]
[354650833,1740603057401,-1719.33,0.00684931,120]
[354650835,1740603057416,-1719.33,0.00684931,120]
[354650837,1740603057428,-1719.33,0.00684931,120]
[354650840,1740603057443,-1719.33,0.00684931,120]
[354650842,1740603057456,-1719.33,0.00684931,120]
[354650844,1740603057468,-1719.33,0.00684931,120]
[354650847,1740603057481,-1719.33,0.00684931,120]
[354650849,1740603057493,-1719.33,0.00684931,120]
[354650851,1740603057506,-1719.33,0.00684931,120]
[354650853,1740603057520,-1719.33,0.00684931,120]
[354650856,1740603057532,-1719.33,0.00684931,120]
[354650858,1740603057544,-1719.490421,0.00684931,120]
[354650860,1740603057555,-5000.0,0.00688,120]
[354650862,1740603057568,-353.63,0.00688,60]
[354650865,1740603057580,-3000.0,0.006889,120]
[354650867,1740603057593,-215.85,0.00689,60]
[354650869,1740603057605,-2050.70645223,0.0069,120]
[354650872,1740603057619,-5000.0,0.006969,120]
[354650874,1740603057632,-20000.0,0.007,120]
[354650876,1740603057643,-2500.0,0.007,120]
[354650878,1740603057654,-1000.0,0.0071,120]
[354650881,1740603057665,-380.0,0.00713432,120]
[354650883,1740603057679,-172.06,0.00714,120]
[354650885,1740603057690,-160.0,0.00714635,120]
[354650888,1740603057702,-172.06,0.00715,120]
[354650890,1740603057714,-220.84176275,0.00724106,120]
[354650892,1740603057727,-500.0,0.007279,120]
[354650895,1740603057740,-500.0,0.007279,120]
[354650897,1740603057752,-500.0,0.007279,120]
[354650899,1740603057764,-500.0,0.007279,120]
[354650901,1740603057776,-500.0,0.007279,120]
[354650904,1740603057789,-500.0,0.007279,120]
[354650906,1740603057803,-500.0,0.007279,120]
[354650908,1740603057814,-500.0,0.007279,120]
[354650911,1740603057824,-500.0,0.007279,120]
[354650913,1740603057835,-500.0,0.007279,120]
[354650915,1740603057845,-500.0,0.007279,120]
[354650917,1740603057856,-500.0,0.007279,120]
[354650919,1740603057867,-500.0,0.007279,120]
[354650921,1740603057880,-500.0,0.007279,120]
[354650924,1740603057893,-500.0,0.007279,120]
[354650926,1740603057905,-500.0,0.007279,120]
[354650928,1740603057916,-500.0,0.007279,120]
[354650930,1740603057927,-500.0,0.007279,120]
[354650933,1740603057938,-500.0,0.007279,120]
[354650935,1740603057949,-500.0,0.007279,120]
[354650937,1740603057960,-500.0,0.007279,120]
[354650939,1740603057971,-500.0,0.007279,120]
[354650941,1740603057982,-500.0,0.007279,120]
[354650944,1740603057992,-500.0,0.007279,120]
[354650946,1740603058003,-500.0,0.007279,120]
[354650948,1740603058013,-500.0,0.007279,120]
[354650950,1740603058024,-500.0,0.007279,120]
[354650952,1740603058035,-500.0,0.007279,120]
[354650954,1740603058046,-500.0,0.007279,120]
[354650956,1740603058057,-500.0,0.007279,120]
[354650959,1740603058068,-500.0,0.007279,120]
[354650961,1740603058079,-500.0,0.007279,120]
[354650963,1740603058090,-500.0,0.007279,120]
[354650965,1740603058101,-500.0,0.007279,120]
[354650967,1740603058113,-500.0,0.007279,120]
[354650969,1740603058125,-500.0,0.007279,120]
[354650972,1740603058136,-500.0,0.007279,120]
[354650974,1740603058147,-500.0,0.007279,120]
[354650976,1740603058158,-500.0,0.007279,120]
[354650978,1740603058169,-500.0,0.007279,120]
[354650980,1740603058181,-500.0,0.007279,120]
[354650982,1740603058191,-500.0,0.007279,120]
[354650984,1740603058202,-500.0,0.007279,120]
[354650986,1740603058211,-500.0,0.007279,120]
[354650988,1740603058221,-500.0,0.007279,120]
[354650990,1740603058230,-518.59,0.007279,120]
[354650992,1740603058239,-20000.0,0.00729,120]
[354650994,1740603058249,-7500.0,0.007378,120]
[354650996,1740603058259,-1000.0,0.0074,120]
[354650998,1740603058268,-22647.96969204,0.007425,120]
[354651000,1740603058278,-42566.3851113,0.00747,120]
[354651002,1740603058287,-1005.0,0.0074747,120]
[354651003,1740603058297,-300.0,0.00747581,120]
[354651005,1740603058306,-270.59,0.00748,60]
[354651007,1740603058316,-151.0,0.00749999,120]
[354651009,1740603058326,-10000.0,0.0075,120]
[354651011,1740603058336,-5000.0,0.0075,90]
[354651013,1740603058346,-12000.0,0.0075,120]
[354651015,1740603058355,-1000.0,0.0075,120]
[354651021,1740603058405,355.4786638,0.00061952,60]
[354651027,1740603058456,500.0,0.00060689,120]
[354651033,1740603058504,500.0,0.00060142,120]
[354651038,1740603058550,500.0,0.00060963,120]
[354651043,1740603058592,152.0,0.00065753,120]
[354651048,1740603058635,500.0,0.00060416,120]
[354651068,1740603058830,355.4786638,0.00061952,60]
[354651074,1740603058877,500.0,0.00061786,120]
[354651079,1740603058922,154.8760086,0.00061952,60]
[354651085,1740603058968,500.0,0.0006069,120]
[354651090,1740603059013,500.0,0.00062464,120]
[354651095,1740603059055,500.0,0.00060964,120]
[354651101,1740603059102,500.0,0.00062881,120]
[354651106,1740603059144,557.5803526,0.00061952,60]
[354651111,1740603059185,154.8760086,0.00061952,60]
[354651116,1740603059227,500.0,0.00061238,120]
[354651121,1740603059267,500.0,0.00064799,120]
[354651126,1740603059307,500.0,0.00060142,120]
[354651131,1740603059345,500.0,0.00061512,120]
[354651136,1740603059393,500.0,0.00068099,120]
[354651141,1740603059436,500.0,0.00060416,120]
[354651146,1740603059478,500.0,0.00061786,120]
[354651151,1740603059521,156.56,0.0007607,120]
[354651157,1740603059563,500.0,0.00052054,120]
[354651162,1740603059606,407.48423662,0.0006069,120]
[354655100,1740603130361,151.0,0.00045,120]
[354655107,1740603682445,-151.0,0.00045,120]
[354655108,1740603682501,-421.0,0.00045,120]
[354655109,1740603682554,-1662.6969675,0.00045675,64]
[354655110,1740603682606,-388.80527398,0.00050873,15]
[354655111,1740603682658,-300.0,0.00050898,15]
[354655112,1740603682713,-1133.63926713,0.00050899,120]
[354655113,1740603682768,-12820.0,0.00051,120]
[354655114,1740603682820,-1306.70487994,0.00051954,28]
[354655115,1740603682872,-500.0,0.00052054,120]
[354655116,1740603682923,-461.49036088,0.00052054,120]
[354655117,1740603682977,-650.05,0.00052054,15]
[354655118,1740603683035,-500.0,0.00052054,30]
[354655119,1740603683092,-500.0,0.00052054,120]
[354655120,1740603683148,-505.18612481,0.00052054,120]
[354655121,1740603683203,-500.0,0.00052054,120]
[354655122,1740603683259,-500.0,0.00052054,120]
[354655123,1740603683315,-500.0,0.00052054,120]
[354655124,1740603683500,-392.86631651,0.00052054,120]
[354655125,1740603683559,-500.0,0.00052054,120]
[354655126,1740603683616,-500.0,0.00052054,120]
[354655127,1740603683674,-500.0,0.00052054,120]
[354655128,1740603683731,-500.0,0.00052054,120]
[354655129,1740603683786,-500.0,0.00052054,120]
[354655130,1740603683840,-500.0,0.00052054,120]
[354655131,1740603683893,-500.0,0.00052054,120]
[354655132,1740603683950,-500.0,0.00052054,120]
[354655133,1740603684008,-500.0,0.00052054,120]
[354655134,1740603684063,-396.25369611,0.00052054,120]
[354655135,1740603684118,-500.0,0.00052054,120]
[354655136,1740603684175,-500.0,0.00052054,120]
[354655137,1740603684230,-500.0,0.00052054,120]
[354655138,1740603684285,-168.803,0.00052054,95]
[354655139,1740603684341,-546.29,0.00052054,120]
[354655140,1740603684395,-676.49,0.00052054,120]
[354655141,1740603684449,-500.0,0.00052054,120]
[354655142,1740603684504,-500.0,0.00052054,120]
[354655143,1740603684561,-500.0,0.00052054,120]
[354655144,1740603684616,-500.0,0.00052054,120]
[354655145,1740603684672,-500.0,0.00052054,120]
[354655146,1740603684727,-500.0,0.00052054,120]
[354655147,1740603684779,-500.0,0.00052054,120]
[354655148,1740603684834,-500.0,0.00052054,120]
[354655149,1740603684893,-500.0,0.00052054,120]
[354655150,1740603684951,-500.0,0.00052054,120]
[354655151,1740603685012,-500.0,0.00052054,120]
[354655152,1740603685075,-500.0,0.00052054,120]
[354655153,1740603685137,-500.0,0.00052054,120]
[354655154,1740603685195,-505.46111321,0.00052054,120]
[354655155,1740603685251,-500.0,0.00052054,120]
[354655156,1740603685309,-500.0,0.00052054,120]
[354655157,1740603685364,-500.0,0.00052054,120]
[354655158,1740603685426,-500.0,0.00052054,120]
[354655159,1740603685482,-500.0,0.00052054,120]
[354655160,1740603685539,-500.0,0.00052326,120]
[354655161,1740603685597,-500.0,0.00052326,120]
[354655162,1740603685656,-691.84,0.00052326,120]
[354655163,1740603685711,-500.0,0.00052326,120]
[354655164,1740603685768,-1340.83,0.00052326,120]
[354655165,1740603685823,-500.0,0.00052326,120]
[354655166,1740603685882,-500.0,0.00052326,120]
[354655167,1740603685938,-500.0,0.00052326,120]
[354655168,1740603685998,-500.0,0.00052326,120]
[354655169,1740603686058,-500.0,0.00052326,120]
[354655170,1740603686116,-500.0,0.00052326,120]
[354655171,1740603686178,-500.0,0.00052326,120]
[354655172,1740603686238,-500.0,0.00052326,120]
[354655173,1740603686300,-500.0,0.00052326,120]
[354655174,1740603686357,-500.0,0.00052326,120]
[354655175,1740603686416,-500.0,0.00052326,120]
[354655176,1740603686474,-500.0,0.00052326,120]
[354655177,1740603686529,-500.0,0.00052326,120]
[354655178,1740603686585,-4372.88,0.00052326,120]
[354655179,1740603686646,-500.0,0.00052326,120]
[354655180,1740603686704,-500.0,0.00052326,120]
[354655181,1740603686761,-500.0,0.00052326,120]
[354655182,1740603686820,-500.0,0.00052326,120]
[354655183,1740603686880,-500.0,0.00052326,120]
[354655184,1740603686945,-500.0,0.00052326,120]
[354655185,1740603687007,-500.0,0.00052326,120]
[354655186,1740603687070,-500.0,0.00052326,120]
[354655187,1740603687130,-500.0,0.00052326,120]
[354655188,1740603687188,-500.0,0.00052326,120]
[354655189,1740603687246,-500.0,0.00052326,120]
[354655190,1740603687399,-500.0,0.00052326,120]
[354655191,1740603687460,-500.0,0.00052326,120]
[354655192,1740603687517,-500.0,0.00052326,120]
[354655193,1740603687574,-500.0,0.00052326,120]
[354655194,1740603687631,-500.0,0.00052326,120]
[354655195,1740603687689,-500.0,0.00052326,120]
[354655196,1740603687748,-501.55816953,0.00052326,120]
[354655197,1740603687805,-500.0,0.00052326,120]
[354655198,1740603687862,-500.0,0.00052327,120]
[354655199,1740603687923,-500.0,0.00052327,120]
[354655200,1740603687983,-500.0,0.00052327,120]
[354655201,1740603688042,-309.4,0.00052327,120]
[354655202,1740603688099,-202.25,0.00052327,120]
[354655203,1740603688156,-500.0,0.00052327,120]
[354655204,1740603688215,-500.0,0.00052327,30]
[354655205,1740603688275,-500.0,0.00052327,120]
[354655206,1740603688331,-500.0,0.00052327,120]
[354655207,1740603688390,-500.0,0.00052327,120]
[354655208,1740603688447,-500.0,0.00052327,120]
[354655209,1740603688501,-500.0,0.00052327,120]
[354655210,1740603688559,-511.54953717,0.00052327,120]
[354655211,1740603688614,-500.0,0.00052327,120]
[354655212,1740603688672,-500.0,0.00052327,120]
[354655213,1740603688734,-500.0,0.00052327,120]
[354655214,1740603688795,-500.0,0.00052327,120]
[354655215,1740603688854,-500.0,0.00052327,120]
[354655216,1740603688910,-500.0,0.00052327,45]
[354655217,1740603688965,-500.0,0.00052327,120]
[354655218,1740603689021,-500.0,0.00052327,120]
[354655219,1740603689078,-500.0,0.00052327,120]
[354655220,1740603689137,-1609.22,0.00052327,120]
[354655221,1740603689194,-500.0,0.00052327,120]
[354655222,1740603689251,-500.0,0.00052327,120]
[354655223,1740603689306,-238.35,0.00052327,120]
[354655224,1740603689362,-500.0,0.00052327,120]
[354655225,1740603689420,-500.47,0.00052327,120]
[354655226,1740603689476,-500.0,0.00052327,120]
[354655227,1740603689531,-500.0,0.00052327,120]
[354655228,1740603689587,-500.0,0.00052327,120]
[354655229,1740603689647,-500.0,0.00052327,120]
[354655230,1740603689705,-500.0,0.00052327,120]
[354655231,1740603689763,-500.0,0.00052327,120]
[354655232,1740603689820,-175.06,0.00052327,120]
[354655233,1740603689878,-500.0,0.00052327,120]
[354655234,1740603689941,-500.0,0.00052327,120]
[354655235,1740603690002,-500.0,0.00052327,120]
[354655236,1740603690063,-596.99543523,0.00052327,120]
[354655237,1740603690122,-650.05,0.00052328,15]
[354655238,1740603690182,-419.1977187,0.00052328,30]
[354655239,1740603690240,-598.36898541,0.00052328,120]
[354655240,1740603690292,-500.0,0.00052328,120]
[354655241,1740603690344,-500.0,0.00052328,120]
[354655242,1740603690398,-500.0,0.00052328,120]
[354655243,1740603690454,-500.0,0.00052328,120]
[354655244,1740603690511,-500.0,0.00052328,120]
[354655245,1740603690566,-500.0,0.00052328,120]
[354655246,1740603690623,-500.0,0.00052328,120]
[354655247,1740603690683,-500.0,0.00052328,120]
[354655248,1740603690745,-500.0,0.00052328,120]
[354655249,1740603690802,-342.03,0.00052328,120]
[354655250,1740603690859,-377.1,0.00052328,120]
[354655251,1740603690916,-546.29,0.00052328,120]
[354655252,1740603690973,-676.49,0.00052328,120]
[354655253,1740603691030,-500.0,0.00052328,120]
[354655254,1740603691086,-500.0,0.00052328,120]
[354655255,1740603691141,-500.0,0.00052328,120]